fUSD/lending_fUSD_20251220
["ID","MTS","AMOUNT","RATE_DAILY","PERIOD"]
[399259674,1766213441124,-2748.82,0.000137,2]
[399259675,1766213441133,-2748.82,0.000137,2]
[399259676,1766213441143,-2748.82,0.000137,2]
[399259677,1766213441152,-2748.82,0.000137,2]
[399259678,1766213441161,-2748.82,0.000137,2]
[399259679,1766213441171,-404.43,0.00013715,2]
[399259680,1766213441180,-500.0,0.00013772,2]
[399259681,1766213441193,-500.0,0.00013772,2]
[399259682,1766213441202,-500.0,0.00013772,2]
[399259683,1766213441212,-500.0,0.00013772,2]
[399259684,1766213441221,-500.0,0.00013772,2]
[399259685,1766213441231,-518.52076054,0.00013772,2]
[399259686,1766213441240,-422.41999488,0.00013772,2]
[399259687,1766213441250,-500.0,0.00013772,2]
[399259688,1766213441260,-500.0,0.00013772,2]
[399259689,1766213441269,-500.63598857,0.00013773,2]
[399259690,1766213441279,-174.74495914,0.00013773,2]
[399259691,1766213441289,-172.76817182,0.00013773,2]
[399259692,1766213441298,-572.75082077,0.00013773,2]
[399259693,1766213441308,-208.16009032,0.00013773,2]
[399259694,1766213441318,-500.0,0.00013773,2]
[399259695,1766213441327,-163.10613259,0.00013773,2]
[399259696,1766213441336,-500.0,0.00013773,2]
[399259697,1766213441345,-500.0,0.00013773,2]
[399259698,1766213441354,-500.0,0.00013773,2]
[399259699,1766213441364,-176.6683039,0.00013773,2]
[399259700,1766213441374,-500.0,0.00013773,2]
[399259701,1766213441383,-172.60476821,0.00013773,2]
[399259702,1766213441392,-166.07222089,0.00013773,2]
[399259703,1766213441401,-500.0,0.00013773,2]
[399259704,1766213441410,-500.0,0.00013773,2]
[399259705,1766213441420,-500.0,0.00013773,2]
[399259706,1766213441429,-500.0,0.00013773,2]
[399259707,1766213441438,-165.53185787,0.00013773,2]
[399259708,1766213441447,-500.0,0.00013773,2]
[399259709,1766213441456,-500.0,0.00013773,2]
[399259710,1766213441465,-500.0,0.00013773,2]
[399259711,1766213441474,-500.0,0.00013773,2]
[399259712,1766213441484,-536.13646338,0.00013773,2]
[399259713,1766213441495,-500.0,0.00013773,2]
[399259714,1766213441505,-216.27337885,0.00013773,2]
[399259715,1766213441514,-500.0,0.00013773,2]
[399259716,1766213441523,-500.0,0.00013773,2]
[399259717,1766213441532,-165.31243658,0.00013773,2]
[399259718,1766213441541,-168.59999571,0.00013773,2]
[399259719,1766213441550,-500.0,0.00013773,2]
[399259720,1766213441560,-500.0,0.00013773,2]
[399259721,1766213441569,-500.0,0.00013773,2]
[399259722,1766213441578,-162.87078705,0.00013773,2]
[399259723,1766213441587,-315.42381846,0.00013773,2]
[399259724,1766213441596,-500.50034776,0.00013773,2]
[399259725,1766213441605,-160.23016142,0.00013773,2]
[399259726,1766213441614,-515.85064943,0.00013773,2]
[399259727,1766213441623,-500.0,0.00013773,2]
[399259728,1766213441632,-500.0,0.00013773,2]
[399259729,1766213441641,-500.0,0.00013773,2]
[399259730,1766213441652,-500.0,0.00013773,2]
[399259731,1766213441661,-500.0,0.00013773,2]
[399259732,1766213441671,-500.0,0.00013773,2]
[399259733,1766213441940,-162.0459649,0.00013773,2]
[399259734,1766213441951,-562.57939524,0.00013773,2]
[399259735,1766213441960,-201.65516925,0.00013773,2]
[399259736,1766213441969,-500.0,0.00013773,2]
[399259737,1766213441978,-179.50290541,0.00013773,2]
[399259738,1766213441987,-500.0,0.00013773,2]
[399259739,1766213441997,-2238.74,0.00013806,2]
[399259740,1766213442006,-250.0,0.00014005,2]
[399259741,1766213442015,-2238.74,0.0001408,2]
[399259742,1766213442024,-200.0,0.0001408,2]
[399259743,1766213442033,-200.0,0.0001408,2]
[399259744,1766213442043,-500.0,0.0001408,2]
[399259745,1766213442052,-515.04736606,0.00014115,2]
[399259746,1766213442061,-30793.36066711,0.00014144,2]
[399259747,1766213442070,-404.43,0.00014286,2]
[399259748,1766213442079,-535.09556247,0.00014321,2]
[399259749,1766213442088,-1001.90897722,0.00014321,2]
[399259750,1766213442097,-500.48342927,0.00014321,2]
[399259751,1766213442106,-1000.84503146,0.00014321,2]
[399259752,1766213442116,-1000.0,0.00014321,2]
[399259753,1766213442125,-1135.18911943,0.00014321,2]
[399259754,1766213442134,-1000.0,0.00014321,2]
[399259755,1766213442143,-1000.78461254,0.00014321,2]
[399259756,1766213442152,-1000.0,0.00014321,2]
[399259757,1766213442161,-1000.0,0.00014321,2]
[399259758,1766213442170,-1000.0,0.00014321,2]
[399259759,1766213442179,-1000.0,0.00014321,2]
[399259760,1766213442190,-627.27365114,0.00014321,2]
[399259761,1766213442199,-502.74001595,0.00014321,2]
[399259762,1766213442207,-1000.0,0.00014321,2]
[399259763,1766213442216,-1000.0,0.00014321,2]
[399259764,1766213442225,-1002.93994495,0.00014321,2]
[399259765,1766213442234,-1000.0,0.00014321,2]
[399259766,1766213442244,-1000.0,0.00014321,2]
[399259767,1766213442253,-500.31513524,0.00014321,2]
[399259768,1766213442262,-1000.0,0.00014321,2]
[399259769,1766213442270,-1000.0,0.00014321,2]
[399259770,1766213442279,-594.53896978,0.00014321,2]
[399259771,1766213442288,-1000.0,0.00014321,2]
[399259772,1766213442297,-483.93215772,0.00014321,2]
[399259773,1766213442306,-1000.0,0.00014321,2]
[399259774,1766213442316,-1000.0,0.00014321,2]
[399259775,1766213442325,-2238.74,0.00014354,2]
[399259776,1766213442334,-2238.74,0.00014628,2]
[399259777,1766213442343,-200.0,0.00014628,2]
[399259778,1766213442352,-500.0,0.00014628,2]
[399259779,1766213442361,-1000.0,0.00014657,2]
[399259780,1766213442370,-500.0,0.00014674,2]
[399259781,1766213442379,-30793.36066711,0.00014833,2]
[399259782,1766213442388,-404.43,0.00014858,2]
[399259783,1766213442398,-508.78923664,0.00014867,2]
[399259784,1766213442407,-500.0,0.00014867,2]
[399259785,1766213442416,-531.02,0.00014867,2]
[399259786,1766213442425,-500.0,0.00014867,2]
[399259787,1766213442435,-500.0,0.00014867,2]
[399259788,1766213442444,-500.0,0.00014867,2]
[399259789,1766213442454,-501.94615261,0.00014867,2]
[399259790,1766213442463,-500.0,0.00014867,2]
[399259791,1766213442472,-1001.91769362,0.00014868,2]
[399259792,1766213442481,-1500.0,0.00014868,2]
[399259794,1766213442490,-1500.0,0.00014868,2]
[399259796,1766213442500,-1001.58945381,0.00014868,2]
[399259798,1766213442510,-1500.0,0.00014868,2]
[399259799,1766213442521,-1211.67995912,0.00014868,2]
[399259800,1766213442530,-365.94030489,0.00014868,2]
[399259801,1766213442539,-502.20443143,0.00014868,2]
[399259802,1766213442549,-1500.0,0.00014868,2]
[399259803,1766213442559,-1501.51415398,0.00014868,2]
[399259804,1766213442569,-1500.0,0.00014868,2]
[399259805,1766213442579,-1500.0,0.00014868,2]
[399259806,1766213442591,-1502.00400434,0.00014868,2]
[399259807,1766213442601,-1500.0,0.00014868,2]
[399259808,1766213442611,-1503.97714891,0.00014868,2]
[399259809,1766213442620,-2238.74,0.00014902,2]
[399259810,1766213442629,-2238.74,0.00015176,2]
[399259811,1766213442639,-160.33063992,0.00015288,2]
[399259812,1766213442649,-158.48329942,0.00015288,2]
[399259813,1766213442659,-155.64705311,0.00015288,2]
[399259814,1766213442668,-150.0,0.00015288,2]
[399259815,1766213442677,-156.76422926,0.00015288,2]
[399259816,1766213442688,-151.72084113,0.00015288,2]
[399259817,1766213442697,-157.75435091,0.00015288,2]
[399259818,1766213442707,-152.11986511,0.00015288,2]
[399259819,1766213442717,-152.70737667,0.00015288,2]
[399259820,1766213442728,-150.82546103,0.00015288,2]
[399259821,1766213442737,-152.94375339,0.00015288,2]
[399259822,1766213442746,-151.68546767,0.00015288,2]
[399259823,1766213442755,-155.96693599,0.00015288,2]
[399259824,1766213442764,-633.74985917,0.00015399,2]
[399259825,1766213442773,-1188.04388907,0.00015416,2]
[399259826,1766213442783,-2000.0,0.00015416,2]
[399259827,1766213442792,-1503.12423045,0.00015416,2]
[399259828,1766213442801,-2000.0,0.00015416,2]
[399259829,1766213442810,-1393.70965969,0.00015416,2]
[399259830,1766213442820,-2002.17420355,0.00015416,2]
[399259831,1766213442830,-1501.47727649,0.00015416,2]
[399259832,1766213442840,-404.43,0.00015429,2]
[399259833,1766213442850,-2238.74,0.0001545,2]
[399259834,1766213442859,-30793.36066711,0.00015522,2]
[399259835,1766213442868,-150.0,0.00015627,2]
[399259836,1766213442877,-2238.74,0.00015724,2]
[399259837,1766213442887,-539.0,0.00015753,2]
[399259838,1766213442896,-500.0,0.00015753,2]
[399259839,1766213442905,-500.0,0.00015753,2]
[399259840,1766213442914,-500.0,0.00015753,2]
[399259841,1766213442924,-151.04245761,0.00015753,2]
[399259842,1766213442933,-152.49962646,0.00015753,2]
[399259843,1766213442943,-500.0,0.00015753,2]
[399259844,1766213442952,-150.0,0.00015753,2]
[399259845,1766213442961,-441.0,0.00015753,2]
[399259846,1766213442970,-500.0,0.00015753,2]
[399259847,1766213442979,-150.0,0.00015753,2]
[399259848,1766213442988,-500.0,0.00015753,2]
[399259849,1766213442997,-1104.0,0.00015753,2]
[399259850,1766213443006,-150.0,0.00015753,2]
[399259851,1766213443015,-151.90726099,0.00015753,2]
[399259852,1766213443025,-500.0,0.00015753,2]
[399259853,1766213443034,-150.0,0.00015753,2]
[399259854,1766213443043,-150.97899754,0.00015753,2]
[399259855,1766213443052,-150.0,0.00015753,2]
[399259856,1766213443061,-500.0,0.00015753,2]
[399259857,1766213443071,-500.0,0.00015753,2]
[399259858,1766213443080,-500.0,0.00015753,2]
[399259859,1766213443091,-500.0,0.00015753,2]
[399259860,1766213443101,-866.0,0.00015753,2]
[399259861,1766213443111,-150.0,0.00015753,2]
[399259862,1766213443122,-500.0,0.00015753,2]
[399259863,1766213443131,-500.0,0.00015753,2]
[399259864,1766213443140,-150.0,0.00015753,2]
[399259865,1766213443148,-150.0,0.00015753,2]
[399259866,1766213443158,-150.0,0.00015753,2]
[399259867,1766213443167,-500.0,0.00015753,2]
[399259868,1766213443176,-150.0,0.00015753,2]
[399259869,1766213443186,-500.0,0.00015753,2]
[399259870,1766213443199,-150.0,0.00015753,2]
[399259871,1766213443208,-150.0,0.00015753,2]
[399259872,1766213443217,-150.0,0.00015753,2]
[399259873,1766213443226,-150.0,0.00015753,2]
[399259874,1766213443235,-500.0,0.00015753,2]
[399259875,1766213443245,-500.0,0.00015753,2]
[399259876,1766213443254,-519.0,0.00015753,2]
[399259877,1766213443263,-150.0,0.00015753,2]
[399259878,1766213443272,-150.0,0.00015753,2]
[399259879,1766213443282,-150.0,0.00015753,2]
[399259880,1766213443291,-500.0,0.00015753,2]
[399259881,1766213443300,-500.0,0.00015753,2]
[399259882,1766213443310,-150.0,0.00015753,2]
[399259883,1766213443319,-535.29,0.00015875,2]
[399259884,1766213443328,-539.0,0.0001589,2]
[399259885,1766213443338,-500.0,0.0001589,2]
[399259886,1766213443348,-500.0,0.0001589,2]
[399259887,1766213443358,-500.0,0.0001589,2]
[399259888,1766213443367,-500.0,0.0001589,2]
[399259889,1766213443376,-150.0,0.0001589,2]
[399259890,1766213443386,-441.0,0.0001589,2]
[399259891,1766213443395,-500.0,0.0001589,2]
[399259892,1766213443404,-150.0,0.0001589,2]
[399259893,1766213443414,-500.0,0.0001589,2]
[399259894,1766213443423,-1104.0,0.0001589,2]
[399259895,1766213443432,-150.0,0.0001589,2]
[399259896,1766213443442,-500.0,0.0001589,2]
[399259897,1766213443451,-150.0,0.0001589,2]
[399259898,1766213443460,-150.0,0.0001589,2]
[399259899,1766213443470,-500.0,0.0001589,2]
[399259900,1766213443479,-500.0,0.0001589,2]
[399259901,1766213443488,-500.0,0.0001589,2]
[399259902,1766213443498,-500.0,0.0001589,2]
[399259903,1766213443507,-866.0,0.0001589,2]
[399259904,1766213443516,-500.0,0.0001589,2]
[399259905,1766213443525,-500.0,0.0001589,2]
[399259906,1766213443534,-150.0,0.0001589,2]
[399259907,1766213443543,-150.0,0.0001589,2]
[399259908,1766213443552,-500.0,0.0001589,2]
[399259909,1766213443562,-150.0,0.0001589,2]
[399259910,1766213443571,-500.0,0.0001589,2]
[399259911,1766213443580,-150.0,0.0001589,2]
[399259912,1766213443589,-150.0,0.0001589,2]
[399259913,1766213443599,-150.0,0.0001589,2]
[399259914,1766213443607,-150.0,0.0001589,2]
[399259915,1766213443617,-500.0,0.0001589,2]
[399259916,1766213443626,-500.0,0.0001589,2]
[399259917,1766213443635,-519.0,0.0001589,2]
[399259918,1766213443644,-150.29349305,0.0001589,2]
[399259919,1766213443654,-150.0,0.0001589,2]
[399259920,1766213443664,-150.0,0.0001589,2]
[399259921,1766213443674,-500.0,0.0001589,2]
[399259922,1766213443683,-500.0,0.0001589,2]
[399259923,1766213443692,-201.2765323,0.0001589,2]
[399259924,1766213443701,-453.68453825,0.000159,2]
[399259925,1766213443711,-453.68453823,0.000159,2]
[399259926,1766213443720,-453.68453823,0.000159,2]
[399259927,1766213443730,-453.68453823,0.000159,2]
[399259928,1766213443739,-453.68453823,0.000159,2]
[399259929,1766213443748,-453.68453823,0.000159,2]
[399259930,1766213443757,-2500.0,0.00015964,2]
[399259931,1766213443766,-2500.0,0.00015964,2]
[399259932,1766213443775,-150.0,0.00015967,2]
[399259933,1766213443785,-1000.0,0.00015989,2]
[399259934,1766213443795,-2238.85,0.00015998,2]
[399259935,1766213443805,-508.21699251,0.00015999,2]
[399259936,1766213443815,-511.62107373,0.00015999,2]
[399259937,1766213443825,-500.0,0.00015999,2]
[399259938,1766213443834,-500.0,0.00015999,2]
[399259939,1766213443844,-531.02,0.00015999,2]
[399259940,1766213443853,-531.02,0.00015999,2]
[399259941,1766213443864,-531.02,0.00015999,2]
[399259942,1766213443875,-531.02,0.00015999,2]
[399259943,1766213443885,-531.02,0.00015999,2]
[399259944,1766213443895,-531.02,0.00015999,2]
[399259945,1766213443904,-531.02,0.00015999,2]
[399259946,1766213443914,-531.02,0.00015999,2]
[399259947,1766213443923,-531.02,0.00015999,2]
[399259948,1766213443932,-500.0,0.00015999,2]
[399259949,1766213443941,-500.0,0.00015999,2]
[399259950,1766213443950,-500.0,0.00015999,2]
[399259951,1766213443959,-500.0,0.00015999,2]
[399259952,1766213443969,-500.0,0.00015999,2]
[399259953,1766213443978,-500.0,0.00015999,2]
[399259954,1766213443987,-632.65,0.00015999,2]
[399259955,1766213443996,-500.0,0.00015999,2]
[399259956,1766213444005,-500.0,0.00015999,2]
[399259957,1766213444015,-500.0,0.00015999,2]
[399259958,1766213444024,-500.0,0.00015999,2]
[399259959,1766213444033,-500.0,0.00015999,2]
[399259960,1766213444041,-500.0,0.00015999,2]
[399259961,1766213444050,-500.0,0.00015999,2]
[399259962,1766213444059,-531.25264543,0.00015999,2]
[399259963,1766213444069,-510.77645617,0.00015999,2]
[399259964,1766213444078,-500.0,0.00015999,2]
[399259965,1766213444088,-513.13109184,0.00015999,2]
[399259966,1766213444100,-539.0,0.00016027,2]
[399259967,1766213444109,-500.0,0.00016027,2]
[399259968,1766213444120,-500.0,0.00016027,2]
[399259969,1766213444129,-500.0,0.00016027,2]
[399259970,1766213444139,-353.74835527,0.00016027,2]
[399259971,1766213444148,-151.21834691,0.00016027,2]
[399259972,1766213444158,-441.0,0.00016027,2]
[399259973,1766213444166,-500.0,0.00016027,2]
[399259974,1766213444175,-150.0,0.00016027,2]
[399259975,1766213444184,-500.0,0.00016027,2]
[399259976,1766213444197,-1104.0,0.00016027,2]
[399259977,1766213444206,-150.0,0.00016027,2]
[399259978,1766213444215,-500.0,0.00016027,2]
[399259979,1766213444224,-150.0,0.00016027,2]
[399259980,1766213444232,-501.70181775,0.00016027,2]
[399259981,1766213444242,-500.0,0.00016027,2]
[399259982,1766213444251,-500.0,0.00016027,2]
[399259983,1766213444260,-500.0,0.00016027,2]
[399259984,1766213444269,-866.0,0.00016027,2]
[399259985,1766213444279,-500.0,0.00016027,2]
[399259986,1766213444288,-500.0,0.00016027,2]
[399259987,1766213444297,-150.0,0.00016027,2]
[399259988,1766213444306,-231.95831861,0.00016027,2]
[399259989,1766213444315,-500.0,0.00016027,2]
[399259990,1766213444324,-150.0,0.00016027,2]
[399259991,1766213444333,-500.0,0.00016027,2]
[399259992,1766213444342,-150.0,0.00016027,2]
[399259993,1766213444351,-150.0,0.00016027,2]
[399259994,1766213444360,-164.7217925,0.00016027,2]
[399259995,1766213444369,-150.0,0.00016027,2]
[399259996,1766213444378,-500.0,0.00016027,2]
[399259997,1766213444387,-500.0,0.00016027,2]
[399259998,1766213444395,-519.0,0.00016027,2]
[399259999,1766213444404,-150.0,0.00016027,2]
[399260000,1766213444413,-256.61900573,0.00016027,2]
[399260001,1766213444422,-500.0,0.00016027,2]
[399260002,1766213444431,-467.42824898,0.00016027,2]
[399260003,1766213444441,-502.0,0.00016027,2]
[399260004,1766213444451,-539.0,0.00016164,2]
[399260005,1766213444460,-500.0,0.00016164,2]
[399260006,1766213444470,-500.0,0.00016164,2]
[399260007,1766213444479,-500.0,0.00016164,2]
[399260008,1766213444489,-441.0,0.00016164,2]
[399260009,1766213444499,-500.0,0.00016164,2]
[399260010,1766213444511,-151.61208378,0.00016164,2]
[399260011,1766213444521,-500.0,0.00016164,2]
[399260012,1766213444530,-1104.0,0.00016164,2]
[399260013,1766213444539,-153.22066729,0.00016164,2]
[399260014,1766213444548,-500.0,0.00016164,2]
[399260015,1766213444557,-150.0,0.00016164,2]
[399260016,1766213444566,-500.0,0.00016164,2]
[399260017,1766213444575,-500.0,0.00016164,2]
[399260018,1766213444584,-500.0,0.00016164,2]
[399260019,1766213444593,-866.0,0.00016164,2]
[399260020,1766213444602,-500.0,0.00016164,2]
[399260021,1766213444611,-150.0,0.00016164,2]
[399260022,1766213444619,-500.0,0.00016164,2]
[399260023,1766213444628,-500.0,0.00016164,2]
[399260024,1766213444637,-519.0,0.00016164,2]
[399260025,1766213444646,-150.0,0.00016164,2]
[399260026,1766213444654,-344.17176914,0.00016164,2]
[399260027,1766213444663,-30793.36066711,0.00016211,2]
[399260028,1766213444672,-215.0738,0.0001627,2]
[399260029,1766213444681,-162.35722153,0.000163,2]
[399260030,1766213444690,-500.33069287,0.000163,2]
[399260031,1766213444699,-500.0,0.000163,2]
[399260032,1766213444708,-500.0,0.000163,2]
[399260033,1766213444717,-500.0,0.000163,2]
[399260034,1766213444727,-500.0,0.000163,2]
[399260035,1766213444736,-500.0,0.000163,2]
[399260036,1766213444745,-500.0,0.000163,2]
[399260037,1766213444754,-330.6916765,0.000163,2]
[399260038,1766213444763,-500.0,0.000163,2]
[399260039,1766213444772,-500.59670517,0.000163,2]
[399260040,1766213444781,-500.0,0.000163,2]
[399260041,1766213444790,-162.24077786,0.000163,2]
[399260042,1766213444799,-500.0,0.000163,2]
[399260043,1766213444807,-333.44713486,0.000163,2]
[399260044,1766213444816,-590.13268338,0.000163,2]
[399260045,1766213444826,-500.21661931,0.000163,2]
[399260046,1766213444835,-500.0,0.000163,2]
[399260047,1766213444844,-500.0,0.000163,2]
[399260048,1766213444853,-500.0,0.000163,2]
[399260049,1766213444862,-500.0,0.000163,2]
[399260050,1766213444871,-162.03877535,0.000163,2]
[399260051,1766213444880,-500.0,0.000163,2]
[399260052,1766213444889,-500.0,0.000163,2]
[399260053,1766213444898,-500.0,0.000163,2]
[399260054,1766213444907,-177.2862913,0.000163,2]
[399260055,1766213444917,-500.48687625,0.000163,2]
[399260056,1766213444926,-500.0,0.000163,2]
[399260057,1766213444935,-334.5464899,0.000163,2]
[399260058,1766213444945,-518.77690272,0.000163,2]
[399260059,1766213444955,-500.0,0.000163,2]
[399260060,1766213444964,-452.09330567,0.000163,2]
[399260061,1766213444976,-426.51211002,0.000163,2]
[399260062,1766213444987,-500.34670783,0.000163,2]
[399260063,1766213444996,-500.0,0.000163,2]
[399260064,1766213445005,-500.44010865,0.000163,2]
[399260065,1766213445015,-168.09419939,0.000163,2]
[399260066,1766213445024,-570.20028222,0.000163,2]
[399260067,1766213445034,-500.30081252,0.000163,2]
[399260068,1766213445044,-500.5692733,0.000163,2]
[399260069,1766213445058,-500.5161197,0.000163,2]
[399260070,1766213445070,-500.0,0.000163,2]
[399260071,1766213445083,-500.4308882,0.000163,2]
[399260072,1766213445095,-500.19600128,0.000163,2]
[399260073,1766213445106,-500.37407939,0.000163,2]
[399260074,1766213445116,-555.87900727,0.000163,2]
[399260075,1766213445126,-500.0,0.000163,2]
[399260076,1766213445138,-500.0,0.000163,2]
[399260077,1766213445148,-500.0,0.000163,2]
[399260078,1766213445159,-500.0,0.000163,2]
[399260079,1766213445171,-500.0,0.000163,2]
[399260080,1766213445187,-500.34860131,0.000163,2]
[399260081,1766213445202,-500.0,0.000163,2]
[399260082,1766213445214,-161.07996631,0.000163,2]
[399260083,1766213445225,-500.0,0.000163,2]
[399260084,1766213445237,-543.08632529,0.000163,2]
[399260085,1766213445248,-523.00588269,0.000163,2]
[399260086,1766213445261,-500.0,0.000163,2]
[399260087,1766213445275,-500.0,0.000163,2]
[399260088,1766213445288,-168.56959317,0.000163,2]
[399260089,1766213445298,-468.55909228,0.000163,2]
[399260090,1766213445309,-344.64845159,0.000163,2]
[399260091,1766213445320,-500.0,0.000163,2]
[399260092,1766213445330,-166.91561833,0.000163,2]
[399260093,1766213445340,-500.30832876,0.000163,2]
[399260094,1766213445350,-500.0,0.000163,2]
[399260095,1766213445359,-577.20648211,0.000163,2]
[399260096,1766213445369,-500.0,0.000163,2]
[399260097,1766213445380,-500.29716194,0.000163,2]
[399260098,1766213445391,-516.37835686,0.000163,2]
[399260099,1766213445402,-500.0,0.000163,2]
[399260100,1766213445412,-500.0,0.000163,2]
[399260101,1766213445423,-159.43095819,0.000163,2]
[399260102,1766213445433,-500.0,0.000163,2]
[399260103,1766213445444,-220.27121476,0.000163,2]
[399260104,1766213445456,-500.0,0.000163,2]
[399260105,1766213445467,-500.45922425,0.000163,2]
[399260106,1766213445478,-500.0,0.000163,2]
[399260107,1766213445488,-500.0,0.000163,2]
[399260108,1766213445499,-529.96646376,0.000163,2]
[399260109,1766213445511,-500.0,0.000163,2]
[399260110,1766213445523,-539.0,0.00016301,2]
[399260111,1766213445533,-441.0,0.00016301,2]
[399260112,1766213445544,-230.7089659,0.00016301,2]
[399260113,1766213445559,-500.0,0.00016301,2]
[399260114,1766213445570,-1104.0,0.00016301,2]
[399260115,1766213445582,-500.0,0.00016301,2]
[399260116,1766213445594,-150.0,0.00016301,2]
[399260117,1766213445607,-500.0,0.00016301,2]
[399260118,1766213445619,-866.0,0.00016301,2]
[399260119,1766213445631,-500.0,0.00016301,2]
[399260120,1766213445642,-500.0,0.00016301,2]
[399260121,1766213445653,-500.0,0.00016301,2]
[399260122,1766213445667,-519.0,0.00016301,2]
[399260123,1766213445679,-150.0,0.00016301,2]
[399260124,1766213445690,-150.0,0.00016307,2]
[399260125,1766213445701,-228.0,0.000164,2]
[399260126,1766213445711,-319.0,0.000164,2]
[399260127,1766213445722,-182.0,0.000164,2]
[399260128,1766213445733,-183.63284637,0.000164,2]
[399260129,1766213445747,-500.0,0.00016437,2]
[399260130,1766213445758,-500.0,0.00016437,2]
[399260131,1766213445772,-500.0,0.00016437,2]
[399260132,1766213445787,-539.0,0.00016438,2]
[399260133,1766213445800,-441.0,0.00016438,2]
[399260134,1766213445813,-151.31035432,0.00016438,2]
[399260135,1766213445824,-1104.0,0.00016438,2]
[399260136,1766213445836,-500.0,0.00016438,2]
[399260137,1766213445847,-250.0,0.00016438,2]
[399260138,1766213445859,-500.0,0.00016438,2]
[399260139,1766213445870,-866.0,0.00016438,2]
[399260140,1766213445880,-500.0,0.00016438,2]
[399260141,1766213445890,-500.0,0.00016438,2]
[399260142,1766213445901,-500.0,0.00016438,2]
[399260143,1766213445913,-519.0,0.00016438,2]
[399260144,1766213445923,-250.0,0.00016438,2]
[399260145,1766213445938,-500.0,0.00016438,2]
[399260146,1766213445951,-500.0,0.00016438,2]
[399260147,1766213445963,-500.0,0.00016438,2]
[399260148,1766213445975,-500.0,0.00016438,2]
[399260149,1766213445987,-500.0,0.00016438,2]
[399260150,1766213445997,-500.0,0.00016438,2]
[399260151,1766213446007,-500.0,0.00016438,2]
[399260152,1766213446018,-500.0,0.00016438,2]
[399260153,1766213446028,-500.0,0.00016438,2]
[399260154,1766213446039,-500.0,0.00016438,2]
[399260155,1766213446050,-429.74012094,0.00016438,2]
[399260156,1766213446061,-500.0,0.00016438,2]
[399260157,1766213446072,-500.0,0.00016438,2]
[399260158,1766213446084,-500.0,0.00016438,2]
[399260159,1766213446095,-500.0,0.00016438,2]
[399260160,1766213446106,-500.0,0.00016438,2]
[399260161,1766213446120,-500.0,0.00016438,2]
[399260162,1766213446131,-500.0,0.00016438,2]
[399260163,1766213446142,-500.0,0.00016438,2]
[399260164,1766213446152,-500.0,0.00016438,2]
[399260165,1766213446163,-500.0,0.00016438,2]
[399260166,1766213446173,-500.0,0.00016438,2]
[399260167,1766213446183,-500.0,0.00016438,2]
[399260168,1766213446193,-500.0,0.00016438,2]
[399260169,1766213446204,-500.0,0.00016438,2]
[399260170,1766213446219,-500.0,0.00016438,2]
[399260171,1766213446229,-500.0,0.00016438,2]
[399260172,1766213446239,-500.0,0.00016438,2]
[399260173,1766213446249,-500.0,0.00016438,2]
[399260174,1766213446261,-500.0,0.00016438,2]
[399260175,1766213446271,-500.0,0.00016438,2]
[399260176,1766213446282,-500.0,0.00016438,2]